{"text_format":"3","workbook":"xlsx","n_sheets":2,"sheets":["SÅDAN BRUGER DU PROJEKTMAPPEN","KARAKTERBOG"],"not_rendered":{"defined_names":5},"read":"whole","date_system":"1900"}

{"sheet":"SÅDAN BRUGER DU PROJEKTMAPPEN","index":0,"n_rows":10,"n_cols":2,"rows_kept":10}
[null,"VEJLEDNING"]
[null,"Brug regnearket KARAKTERBOG til at beregne karakterer, hvor hver opgave svarer til et bestemt antal point. "]
[null,"Vejledning: Sørg for at lave sikkerhedskopier af dine karakterer."]
[null,"1. Udfyld med navnet på din skole, klasseoplysninger, navne på eleverne og elev-id'er (valgfrit).   "]
[null,"2. Juster tabellen Karakter og karaktergennemsnit, så den passer til det karaktersystem, du bruger."]
[null,"3. Udfyld navne på opgaver eller prøver fra celle G7, sammen med procentdelen, som hver af dem er vægtet med (f.eks. \"Afsluttende eksamen\" og \"50 %\"). "]
[null,"4. Angiv karaktererne for hver elev på hver opgave eller prøve. Kolonnerne \"Resultat\", \"Bogstavkarakter\" og \"Karaktergennemsnit\" beregnes automatisk, men du kan tilsidesætte dem, hvis du ønsker. Sådan som karaktererne beregnes, er den gennemsnitlige og endelig karakter ufuldstændige, indtil alle resultater er registreret."]
[null,"Brug kommandoen \"Udskriftsområde\" på menuen Sidelayout, hvis du vil ændre, hvilket område der udskrives."]
[null,"Resultat, Bogstavkarakter og Karaktergennemsnit er ikke gyldige, før 100 % af alle prøver og opgaver er fuldført. "]
[null,"Angiv hver opgave eller prøve og dens procentdel af den samlede karakter i cellerne G7 til W8."]

{"sheet":"KARAKTERBOG","index":1,"n_rows":20,"n_cols":23,"rows_kept":20,"merged":[[5,1,5,5],[6,1,6,3],[6,4,6,5],[7,1,8,3],[7,4,7,5],[8,4,8,5],[15,1,15,5],[16,1,16,2],[17,1,17,2],[18,1,18,2],[19,1,19,2]]}
[null,"NAVNET PÅ DIN SKOLE"]
[]
[{"$nulls":6},"Resultat",{"v":0,"d":"0%"},{"v":0.6,"d":"60%"},{"v":0.63,"d":"63%"},{"v":0.67,"d":"67%"},{"v":0.7,"d":"70%"},{"v":0.73,"d":"73%"},{"v":0.77,"d":"77%"},{"v":0.8,"d":"80%"},{"v":0.83,"d":"83%"},{"v":0.87,"d":"87%"},{"v":0.9,"d":"90%"},{"v":0.93,"d":"93%"},{"v":0.97,"d":"97%"}]
[{"$nulls":6},"Bogstavkarakter","F","D-","D","D+","C-","C","C+","B-","B","B+","A-","A","A+"]
[{"$nulls":6},"Karaktergennemsnit",0,0.67,1,1.33,1.67,2,2.33,2.67,3,3.33,3.67,4,4]
[null,"Lærers navn"]
[null,"Klasse/projekt",null,null,"Navn på opgave eller prøve"]
[null,"År/semester/kvartal",null,null,"Procentsats (skal give 100 % i alt)"]
[{"$nulls":4},{"$f":"\"Omkostningsprocent: \"&SUM(G8:W8)*100&\"%\"","v":"Omkostningsprocent: 0%"}]
[null,"Elevens navn","Elev-id","Resultat","Bogstavkarakter","Karaktergennemsnit","Kolonne6","Kolonne7","Kolonne8","Kolonne9","Kolonne10","Kolonne11","Kolonne12","Kolonne13","Kolonne14","Kolonne15","Kolonne16","Kolonne17","Kolonne18","Kolonne19","Kolonne20","Kolonne21","Kolonne22"]
[{"$nulls":3},{"$f":"(IF(SUM(Karakterer[[#This Row],[Kolonne6]:[Kolonne22]]),ROUND(SUMPRODUCT($G$8:$W$8,Karakterer[[#This Row],[Kolonne6]:[Kolonne22]]),2),\"\"))","v":""},{"$f":"IF(Karakterer[[#This Row],[Resultat]]<>\"\",HLOOKUP(Karakterer[[#This Row],[Resultat]],KARAKTERTABEL,2),\"\")","v":""},{"$f":"IF(Karakterer[[#This Row],[Resultat]]<>\"\",HLOOKUP(Karakterer[[#This Row],[Resultat]],KARAKTERTABEL,3),\"\")","v":""}]
[{"$nulls":3},{"$f":"(IF(SUM(Karakterer[[#This Row],[Kolonne6]:[Kolonne22]]),ROUND(SUMPRODUCT($G$8:$W$8,Karakterer[[#This Row],[Kolonne6]:[Kolonne22]]),2),\"\"))","v":""},{"$f":"IF(Karakterer[[#This Row],[Resultat]]<>\"\",HLOOKUP(Karakterer[[#This Row],[Resultat]],KARAKTERTABEL,2),\"\")","v":""},{"$f":"IF(Karakterer[[#This Row],[Resultat]]<>\"\",HLOOKUP(Karakterer[[#This Row],[Resultat]],KARAKTERTABEL,3),\"\")","v":""}]
[{"$nulls":3},{"$f":"(IF(SUM(Karakterer[[#This Row],[Kolonne6]:[Kolonne22]]),ROUND(SUMPRODUCT($G$8:$W$8,Karakterer[[#This Row],[Kolonne6]:[Kolonne22]]),2),\"\"))","v":""},{"$f":"IF(Karakterer[[#This Row],[Resultat]]<>\"\",HLOOKUP(Karakterer[[#This Row],[Resultat]],KARAKTERTABEL,2),\"\")","v":""},{"$f":"IF(Karakterer[[#This Row],[Resultat]]<>\"\",HLOOKUP(Karakterer[[#This Row],[Resultat]],KARAKTERTABEL,3),\"\")","v":""}]
[{"$nulls":3},{"$f":"(IF(SUM(Karakterer[[#This Row],[Kolonne6]:[Kolonne22]]),ROUND(SUMPRODUCT($G$8:$W$8,Karakterer[[#This Row],[Kolonne6]:[Kolonne22]]),2),\"\"))","v":""},{"$f":"IF(Karakterer[[#This Row],[Resultat]]<>\"\",HLOOKUP(Karakterer[[#This Row],[Resultat]],KARAKTERTABEL,2),\"\")","v":""},{"$f":"IF(Karakterer[[#This Row],[Resultat]]<>\"\",HLOOKUP(Karakterer[[#This Row],[Resultat]],KARAKTERTABEL,3),\"\")","v":""}]
[{"$nulls":3},{"$f":"(IF(SUM(Karakterer[[#This Row],[Kolonne6]:[Kolonne22]]),ROUND(SUMPRODUCT($G$8:$W$8,Karakterer[[#This Row],[Kolonne6]:[Kolonne22]]),2),\"\"))","v":""},{"$f":"IF(Karakterer[[#This Row],[Resultat]]<>\"\",HLOOKUP(Karakterer[[#This Row],[Resultat]],KARAKTERTABEL,2),\"\")","v":""},{"$f":"IF(Karakterer[[#This Row],[Resultat]]<>\"\",HLOOKUP(Karakterer[[#This Row],[Resultat]],KARAKTERTABEL,3),\"\")","v":""}]
[]
[null,"Klasseoversigt",null,"Resultat","Bogstavkarakter","Karaktergennemsnit","","","","","","","","","","",""]
[null," Gennemsnit",null,{"$f":"IFERROR(AVERAGE(Karakterer[[#All],[Resultat]]),0)","v":{"v":0,"d":"0.0%"}},{"$f":"IFERROR(HLOOKUP(D18,KARAKTERTABEL,2),\"\")","v":"F"},{"$f":"IFERROR(AVERAGE(Karakterer[[#All],[Karaktergennemsnit]]),0)","v":0},"","","","","","","","","","","","","","","","",""]
[null," Højeste resultat",null,{"$f":"IFERROR(MAX(Karakterer[[#All],[Resultat]]),0)","v":{"v":0,"d":"0.0%"}},{"$f":"IFERROR(HLOOKUP(D19,KARAKTERTABEL,2),\"\")","v":"F"},{"$f":"IFERROR(MAX(Karakterer[[#All],[Karaktergennemsnit]]),0)","v":0},"","","","","","","","","","","","","","","","",""]
[null," Laveste resultat",null,{"$f":"IFERROR(MIN(Karakterer[[#All],[Resultat]]),0)","v":{"v":0,"d":"0.0%"}},{"$f":"IFERROR(HLOOKUP(D20,KARAKTERTABEL,2),\"\")","v":"F"},{"$f":"IFERROR(MIN(Karakterer[[#All],[Karaktergennemsnit]]),0)","v":0},"","","","","","","","","","","","","","","","",""]